fUST/lending_fUST_20260619
["ID","MTS","AMOUNT","RATE_DAILY","PERIOD"]
[425529332,1781800243000,-1004.0,0.00019956,2]
[425529311,1781800243000,-500.0,0.0001986,2]
[425529309,1781800243000,-326.5769732,0.0001977,2]
[425529313,1781800243000,-500.0,0.0001986,2]
[425529308,1781800243000,-26500.18575456,0.00019763,2]
[425529312,1781800243000,-500.0,0.0001986,2]
[425529316,1781800243000,-500.0,0.00019861,2]
[425529318,1781800243000,-152.0,0.00019868,7]
[425529320,1781800243000,-168.76676163,0.0001989,2]
[425529321,1781800243000,-500.0,0.00019895,2]
[425529328,1781800243000,-2297.839717,0.00019921,2]
[425529310,1781800243000,-500.0,0.00019859,2]
[425529325,1781800243000,-846.5,0.000199,2]
[425529319,1781800243000,-152.0,0.00019868,7]
[425529324,1781800243000,-500.0,0.00019895,2]
[425529322,1781800243000,-2189.12,0.00019895,2]
[425529323,1781800243000,-500.0,0.00019895,2]
[425529327,1781800243000,-1228.919858,0.00019921,2]
[425529326,1781800243000,-160.0,0.00019921,2]
[425529329,1781800243000,-1042.00372317,0.00019941,2]
[425529340,1781800243000,-445.0,0.00019996,2]
[425529341,1781800243000,-958.0,0.00019996,2]
[425529317,1781800243000,-500.0,0.00019862,2]
[425529330,1781800243000,-152.0,0.00019953,7]
[425529402,1781800244000,-474.98,0.000205,2]
[425529403,1781800244000,-619.596414,0.00020571,2]
[425529396,1781800244000,-1460.49,0.000205,2]
[425529399,1781800244000,-457.1678,0.000205,2]
[425529398,1781800244000,-196.66106927,0.000205,2]
[425529397,1781800244000,-1334.2896,0.000205,2]
[425529400,1781800244000,-1835.3762,0.000205,2]
[425529404,1781800244000,-1206.340586,0.00020571,2]
[425529401,1781800244000,-474.98,0.000205,2]
[425529405,1781800244000,-363.915076,0.0002058,2]
[425529395,1781800244000,-1991.3405,0.000205,2]
[425529407,1781800244000,-380.04877742,0.000206,2]
[425529394,1781800244000,-500.0,0.00020499,2]
[425529406,1781800244000,-195.49935945,0.00020593,2]
[425529420,1781800244000,-2189.12,0.00020717,2]
[425529410,1781800244000,-1123.485015,0.00020643,2]
[425529414,1781800244000,-500.0,0.00020682,2]
[425529413,1781800244000,-500.0,0.00020682,2]
[425529411,1781800244000,-5068.181254,0.00020643,2]
[425529408,1781800244000,-1064.61406554,0.00020602,2]
[425529409,1781800244000,-1407.93430207,0.0002061,2]
[425529416,1781800244000,-500.0,0.00020683,2]
[425529412,1781800244000,-581.96,0.00020682,2]
[425529415,1781800244000,-500.0,0.00020683,2]
[425529418,1781800244000,-417.15472785,0.000207,3]
[425529422,1781800244000,-221.37,0.0002075,2]
[425529419,1781800244000,-500.0,0.00020717,2]
[425529393,1781800244000,-216.4752898,0.0002049,2]
[425529417,1781800244000,-611.96816939,0.00020699,2]
[425529386,1781800244000,-500.0,0.00020408,2]
[425529365,1781800244000,-500.0,0.00020169,2]
[425529389,1781800244000,-312.80620972,0.00020416,2]
[425529429,1781800244000,-3318.083619,0.00020917,2]
[425529367,1781800244000,-500.0,0.00020169,2]
[425529366,1781800244000,-2189.12,0.00020169,2]
[425529361,1781800244000,-34462.27298228,0.00020139,3]
[425529363,1781800244000,-151.0,0.00020139,2]
[425529364,1781800244000,-3345.69535623,0.0002014,3]
[425529368,1781800244000,-500.0,0.00020169,2]
[425529370,1781800244000,-380.04877742,0.000202,2]
[425529372,1781800244000,-1319.36012758,0.00020296,2]
[425529371,1781800244000,-195.49935945,0.00020285,2]
[425529369,1781800244000,-350.0,0.0002017,2]
[425529379,1781800244000,-206.14899445,0.00020299,2]
[425529376,1781800244000,-404.25782745,0.00020296,2]
[425529387,1781800244000,-500.0,0.00020409,2]
[425529375,1781800244000,-335.70872885,0.00020296,2]
[425529374,1781800244000,-364.83442278,0.00020296,2]
[425529373,1781800244000,-1392.94017072,0.00020296,2]
[425529377,1781800244000,-306.64938943,0.00020296,2]
[425529381,1781800244000,-308.741064,0.00020405,2]
[425529382,1781800244000,-340.65889318,0.00020407,2]
[425529392,1781800244000,-500.0,0.00020443,2]
[425529383,1781800244000,-462.34,0.00020408,2]
[425529391,1781800244000,-2189.12,0.00020443,2]
[425529380,1781800244000,-380.04877742,0.000204,2]
[425529388,1781800244000,-500.0,0.00020409,2]
[425529384,1781800244000,-500.0,0.00020408,2]
[425529385,1781800244000,-500.0,0.00020408,2]
[425529390,1781800244000,-500.0,0.00020443,2]
[425529378,1781800244000,-161.9399778,0.00020297,2]
[425529424,1781800244000,-398.8653905,0.00020875,2]
[425529362,1781800244000,-151.0,0.00020139,2]
[425529425,1781800244000,-917.283594,0.00020875,2]
[425529459,1781800244000,-3000.0,0.0002108,2]
[425529460,1781800244000,-3000.0,0.0002109,2]
[425529465,1781800244000,-3000.0,0.0002113,2]
[425529462,1781800244000,-151.0,0.000211,4]
[425529464,1781800244000,-3000.0,0.0002112,2]
[425529468,1781800244000,-3000.0,0.0002116,2]
[425529467,1781800244000,-3000.0,0.0002115,2]
[425529466,1781800244000,-3000.0,0.0002114,2]
[425529463,1781800244000,-3000.0,0.0002111,2]
[425529469,1781800244000,-3000.0,0.0002117,2]
[425529470,1781800244000,-3000.0,0.0002118,2]
[425529472,1781800244000,-3000.0,0.000212,2]
[425529478,1781800244000,-3000.0,0.0002123,2]
[425529458,1781800244000,-3000.0,0.0002107,2]
[425529480,1781800244000,-500.0,0.00021231,2]
[425529471,1781800244000,-3000.0,0.0002119,2]
[425529474,1781800244000,-151.0,0.000212,4]
[425529482,1781800244000,-3000.0,0.0002124,2]
[425529473,1781800244000,-151.0,0.000212,4]
[425529481,1781800244000,-500.0,0.00021231,2]
[425529476,1781800244000,-2277.15989427,0.0002121,2]
[425529485,1781800244000,-1087.22440805,0.00021264,2]
[425529475,1781800244000,-722.84010573,0.0002121,2]
[425529477,1781800244000,-3000.0,0.0002122,2]
[425529483,1781800244000,-3000.0,0.0002125,2]
[425529486,1781800244000,-2189.12,0.00021265,2]
[425529484,1781800244000,-3000.0,0.0002126,2]
[425529430,1781800244000,-541.88,0.00020956,2]
[425529479,1781800244000,-381.47,0.0002123,2]
[425529453,1781800244000,-3000.0,0.0002104,2]
[425529461,1781800244000,-3000.0,0.000211,2]
[425529446,1781800244000,-41463.74856038,0.00021,2]
[425529423,1781800244000,-380.04877742,0.000208,2]
[425529421,1781800244000,-500.0,0.00020717,2]
[425529426,1781800244000,-259.9614648,0.000209,2]
[425529428,1781800244000,-195.49935945,0.000209,2]
[425529427,1781800244000,-500.3,0.000209,2]
[425529432,1781800244000,-500.0,0.00020957,2]
[425529431,1781800244000,-500.0,0.00020956,2]
[425529444,1781800244000,-5309.03630898,0.00021,2]
[425529443,1781800244000,-4000.0,0.00021,2]
[425529442,1781800244000,-46156.33197312,0.00021,2]
[425529456,1781800244000,-3000.0,0.0002105,2]
[425529433,1781800244000,-500.0,0.00020957,2]
[425529435,1781800244000,-547.481787,0.00020961,2]
[425529436,1781800244000,-2189.12,0.00020991,2]
[425529437,1781800244000,-500.0,0.00020991,2]
[425529434,1781800244000,-459.568673,0.00020958,2]
[425529439,1781800244000,-208.27,0.00021,2]
[425529448,1781800244000,-151.0,0.00021,2]
[425529452,1781800244000,-3000.0,0.0002103,2]
[425529440,1781800244000,-10000.0,0.00021,2]
[425529454,1781800244000,-156.106127,0.0002104,2]
[425529457,1781800244000,-3000.0,0.0002106,2]
[425529447,1781800244000,-3000.0,0.00021,2]
[425529451,1781800244000,-3000.0,0.0002102,2]
[425529450,1781800244000,-3000.0,0.0002101,2]
[425529449,1781800244000,-151.0,0.00021,2]
[425529445,1781800244000,-1903.0,0.00021,2]
[425529438,1781800244000,-3357.67123892,0.00021,3]
[425529441,1781800244000,-281.19767245,0.00021,2]
[425529455,1781800244000,-151.0,0.0002104,2]
[425529496,1781800245000,-3000.0,0.0002133,2]
[425529487,1781800245000,-500.0,0.00021265,2]
[425529488,1781800245000,-3000.0,0.0002127,2]
[425529489,1781800245000,-3000.0,0.0002128,2]
[425529490,1781800245000,-720.0,0.00021284,10]
[425529491,1781800245000,-3000.0,0.0002129,2]
[425529493,1781800245000,-151.0,0.000213,3]
[425529494,1781800245000,-3000.0,0.0002131,2]
[425529495,1781800245000,-3000.0,0.0002132,2]
[425529497,1781800245000,-987.97338054,0.00021332,2]
[425529500,1781800245000,-2005.83384583,0.00021347,2]
[425529492,1781800245000,-3000.0,0.000213,2]
[425529504,1781800245000,-6908.65628303,0.0002136,2]
[425529507,1781800245000,-371860.29360444,0.0002137,2]
[425529505,1781800245000,-3000.0,0.0002137,2]
[425529502,1781800245000,-6913.14996528,0.0002135,2]
[425529498,1781800245000,-3000.0,0.0002134,2]
[425529501,1781800245000,-3000.0,0.0002135,2]
[425529506,1781800245000,-45770.47034329,0.0002137,2]
[425529499,1781800245000,-1899.87858372,0.00021347,2]
[425529503,1781800245000,-3000.0,0.0002136,2]
[425529513,1781800249000,-3694.34606534,0.0002137,2]
[425529512,1781800249000,-111298.5069812,0.0002137,2]
[425529511,1781800249000,-3545.46516049,0.0002137,2]
[425529510,1781800249000,-335.352807,0.00020607,2]
[425531471,1781801444000,-160.0,0.00018564,2]
[425531477,1781801444000,-184.43855652,0.000187,2]
[425531475,1781801444000,-184.43855652,0.000186,2]
[425531473,1781801444000,-1029.46172103,0.000186,2]
[425531463,1781801444000,-1532.637243,0.00017639,2]
[425531467,1781801444000,-160.0,0.00018564,2]
[425531465,1781801444000,-160.0,0.00018564,2]
[425531479,1781801444000,-101.43632703,0.000188,2]
[425531469,1781801444000,-160.0,0.00018564,2]
[425531690,1781801446000,-500.0,0.00018999,2]
[425531687,1781801446000,-184.43855652,0.000189,2]
[425531688,1781801446000,-500.0,0.0001897,2]
[425531692,1781801446000,-195.47485394,0.00018999,2]
[425531685,1781801446000,-928.025394,0.000188,2]
[425534811,1781801545000,234.59660517,0.00023059,120]
[425534824,1781801664000,150.83218655,0.00023059,120]
[425534870,1781802034000,-3491.12078973,0.0001,2]
[425534879,1781802097000,-151.0,0.00010585,13]
[425534880,1781802098000,-151.0,0.00010585,13]
[425534881,1781802101000,-151.0,0.00010585,13]
[425534882,1781802133000,-151.0,0.00010585,13]
[425534883,1781802134000,-151.0,0.00010585,13]
[425534884,1781802135000,-151.0,0.00010585,13]
[425534885,1781802158000,-151.0,0.00010585,13]
[425535018,1781802632000,-300.0,0.00013126,2]
[425535015,1781802632000,-300.0,0.00013126,2]
[425535007,1781802632000,-300.0,0.00013126,2]
[425535011,1781802632000,-300.0,0.00013126,2]
[425535022,1781802632000,-300.0,0.00013126,2]
[425535009,1781802632000,-300.0,0.00013126,2]
[425535013,1781802632000,-300.0,0.00013126,2]
[425535020,1781802632000,-300.0,0.00013126,2]
[425535006,1781802632000,-300.0,0.00013126,2]
[425535002,1781802632000,-300.0,0.00013126,2]
[425535004,1781802632000,-300.0,0.00013126,2]
[425535000,1781802632000,-300.0,0.00013126,2]
[425534998,1781802632000,-300.0,0.00013126,2]
[425534993,1781802632000,-300.0,0.00012999,2]
[425534988,1781802632000,-320.81182996,0.000118,5]
[425534997,1781802632000,-300.0,0.00013126,2]
[425534991,1781802632000,-300.0,0.00012999,2]
[425534986,1781802632000,-151.0,0.000115,2]
[425534984,1781802632000,-200.0,0.00011423,2]
[425534982,1781802632000,-156.0,0.00010959,2]
[425534981,1781802632000,-151.0,0.00010371,2]
[425534979,1781802632000,-151.0,0.0001006,2]
[425534975,1781802632000,-5000.0,9.661e-05,2]
[425534977,1781802632000,-151.0,9.758e-05,2]
[425535017,1781802632000,-300.0,0.00013126,2]
[425534995,1781802632000,-7993.78001491,0.00013,2]
[425535028,1781802632000,-128.74657,0.00013698,2]
[425534990,1781802632000,-1056.90563718,0.00012,2]
[425535031,1781802632000,-371.25343,0.00013698,2]
[425535026,1781802632000,-626.9028985,0.00013627,2]
[425535078,1781802632000,-1318.65,0.00016986,2]
[425535074,1781802632000,-645.60795911,0.0001695,2]
[425535073,1781802632000,-310.904359,0.00016713,2]
[425535069,1781802632000,-500.0,0.00016712,2]
[425535076,1781802632000,-500.0,0.00016986,2]
[425535071,1781802632000,-500.0,0.00016712,2]
[425535067,1781802632000,-1318.65,0.00016712,2]
[425535062,1781802632000,-260.76309157,0.00016696,7]
[425535058,1781802632000,-500.0,0.00016438,2]
[425535053,1781802632000,-215.6531025,0.00016438,2]
[425535060,1781802632000,-500.0,0.00016438,2]
[425535064,1781802632000,-500.0,0.00016712,2]
[425535066,1781802632000,-500.0,0.00016712,2]
[425535056,1781802632000,-1318.65,0.00016438,2]
[425535051,1781802632000,-169.49949406,0.00016438,2]
[425535049,1781802632000,-330.50050594,0.00016438,2]
[425535047,1781802632000,-310.904359,0.00016088,2]
[425535045,1781802632000,-173.84206104,0.00015768,7]
[425535044,1781802632000,-587.0,0.00015634,2]
[425535042,1781802632000,-310.904359,0.00015463,2]
[425535039,1781802632000,-420.0,0.00014256,2]
[425535037,1781802632000,-300.0,0.00014256,2]
[425535035,1781802632000,-367.05343,0.00013698,2]
[425535040,1781802632000,-310.904359,0.00014839,2]
[425535033,1781802632000,-132.94657,0.00013698,2]
[425535024,1781802632000,-4117.8454605,0.00013436,2]
[425535055,1781802632000,-284.3468975,0.00016438,2]
[425535086,1781802633000,-349.36689431,0.00017,2]
[425535080,1781802633000,-500.0,0.00016986,2]
[425535083,1781802633000,-1876.70153708,0.00017,2]
[425535088,1781802633000,-880.11671611,0.00017,2]
[425535082,1781802633000,-500.0,0.00016986,2]
[425535202,1781802640000,-1389.0,0.00017,2]
[425535203,1781802640000,-1000.5,0.00017,2]
[425535233,1781802641000,-217.33496738,0.00018148,2]
[425535231,1781802641000,-172.0,0.00018084,2]
[425535228,1781802641000,-1318.65,0.00018082,2]
[425535238,1781802641000,-500.0,0.00018356,2]
[425535242,1781802641000,-500.0,0.00018356,2]
[425535246,1781802641000,-162.51296752,0.000184,2]
[425535244,1781802641000,-583.18879869,0.00018357,7]
[425535249,1781802641000,-160.0,0.0001856,2]
[425535245,1781802641000,-162.51296753,0.000184,2]
[425535247,1781802641000,-160.0,0.0001856,2]
[425535248,1781802641000,-160.0,0.0001856,2]
[425535252,1781802641000,-617.67703262,0.000186,2]
[425535250,1781802641000,-160.0,0.0001856,2]
[425535255,1781802641000,-535.82960985,0.0001863,2]
[425535253,1781802641000,-500.0,0.0001863,2]
[425535254,1781802641000,-1318.65,0.0001863,2]
[425535256,1781802641000,-617.67703262,0.000187,2]
[425535257,1781802641000,-515.14968212,0.00018766,2]
[425535258,1781802641000,-583.18879869,0.00018897,7]
[425535259,1781802641000,-429.7646462,0.00018899,2]
[425535268,1781802641000,-500.0,0.00018899,2]
[425535269,1781802641000,-500.0,0.00018899,2]
[425535251,1781802641000,-184.4385565,0.000186,2]
[425535223,1781802641000,-500.0,0.00017808,2]
[425535221,1781802641000,-1318.65,0.00017808,2]
[425535226,1781802641000,-328.23349885,0.00018003,2]
[425535204,1781802641000,-1306.17199851,0.00017,2]
[425535205,1781802641000,-3459.26931794,0.00017,2]
[425535207,1781802641000,-500.0,0.0001726,2]
[425535206,1781802641000,-302.0,0.00017145,2]
[425535208,1781802641000,-1318.65,0.0001726,2]
[425535209,1781802641000,-500.0,0.0001726,2]
[425535211,1781802641000,-600.0,0.00017288,2]
[425535212,1781802641000,-310.904359,0.00017337,2]
[425535261,1781802641000,-500.0,0.00018899,2]
[425535214,1781802641000,-1499.23912855,0.00017534,2]
[425535215,1781802641000,-500.0,0.00017534,2]
[425535225,1781802641000,-583.18879869,0.00017997,7]
[425535213,1781802641000,-155.21875911,0.0001753,2]
[425535210,1781802641000,-500.0,0.0001726,2]
[425535220,1781802641000,-500.0,0.00017808,2]
[425535216,1781802641000,-1318.65,0.00017534,2]
[425535218,1781802641000,-500.0,0.00017534,2]
[425535222,1781802641000,-390.96,0.00017808,2]
[425535234,1781802641000,-500.0,0.00018356,2]
[425535224,1781802641000,-310.904359,0.00017962,2]
[425535237,1781802641000,-500.0,0.00018356,2]
[425535227,1781802641000,-500.0,0.00018082,2]
[425535229,1781802641000,-500.0,0.00018082,2]
[425535240,1781802641000,-1318.65,0.00018356,2]
[425535217,1781802641000,-500.0,0.00017534,2]
[425535262,1781802641000,-500.0,0.00018899,2]
[425535260,1781802641000,-500.0,0.00018899,2]
[425535265,1781802641000,-500.0,0.00018899,2]
[425535296,1781802641000,-500.0,0.00019175,2]
[425535297,1781802641000,-500.0,0.00019175,2]
[425535295,1781802641000,-500.0,0.00019175,2]
[425535300,1781802641000,-500.0,0.00019175,2]
[425535298,1781802641000,-500.0,0.00019175,2]
[425535299,1781802641000,-500.0,0.00019175,2]
[425535305,1781802641000,-1318.65,0.00019178,2]
[425535303,1781802641000,-500.0,0.00019175,2]
[425535301,1781802641000,-500.0,0.00019175,2]
[425535304,1781802641000,-538.83736883,0.00019175,2]
[425535302,1781802641000,-516.63820031,0.00019175,2]
[425535293,1781802641000,-500.0,0.00019175,2]
[425535307,1781802641000,-583.18879869,0.00019437,7]
[425535306,1781802641000,-617.67703262,0.000193,2]
[425535317,1781802641000,-152.0,0.0001986,7]
[425535318,1781802641000,-854590.20415756,0.000199,2]
[425535309,1781802641000,-1000.0,0.00019654,5]
[425535311,1781802641000,-160.0,0.00019792,2]
[425535310,1781802641000,-1318.65,0.00019726,2]
[425535312,1781802641000,-358.160122,0.00019792,2]
[425535263,1781802641000,-500.0,0.00018899,2]
[425535314,1781802641000,-152.0,0.00019836,7]
[425535313,1781802641000,-556.320244,0.00019792,2]
[425535315,1781802641000,-152.0,0.00019836,7]
[425535308,1781802641000,-1318.65,0.00019452,2]
[425535289,1781802641000,-617.67703262,0.000191,2]
[425535316,1781802641000,-152.0,0.0001986,7]
[425535292,1781802641000,-186.0,0.00019133,2]
[425535266,1781802641000,-500.0,0.00018899,2]
[425535264,1781802641000,-500.0,0.00018899,2]
[425535267,1781802641000,-500.0,0.00018899,2]
[425535270,1781802641000,-304.82311781,0.00018899,2]
[425535272,1781802641000,-393.39,0.00018904,2]
[425535274,1781802641000,-204.109,0.00018904,2]
[425535291,1781802641000,-445.0,0.00019133,2]
[425535275,1781802641000,-155.0,0.00018906,2]
[425535271,1781802641000,-617.67703262,0.000189,2]
[425535276,1781802641000,-2585.94585006,0.0001895,2]
[425535281,1781802641000,-4508.61302697,0.0001895,2]
[425535279,1781802641000,-2730.1627346,0.0001895,2]
[425535273,1781802641000,-1318.65,0.00018904,2]
[425535282,1781802641000,-151.563,0.00018955,2]
[425535278,1781802641000,-4270.45208655,0.0001895,2]
[425535280,1781802641000,-3565.92683703,0.0001895,2]
[425535284,1781802641000,-433.010556,0.00019012,2]
[425535294,1781802641000,-500.0,0.00019175,2]
[425535283,1781802641000,-190.22726229,0.00018955,2]
[425535290,1781802641000,-958.0,0.00019133,2]
[425535285,1781802641000,-160.0,0.00019012,2]
[425535288,1781802641000,-720.0,0.00019017,2]
[425535287,1781802641000,-1300.466282,0.00019012,2]
[425535286,1781802641000,-730.233141,0.00019012,2]
[425535277,1781802641000,-3377.56192661,0.0001895,2]
[425535327,1781802642000,-558.58251735,0.00019948,2]
[425535320,1781802642000,-215.24272444,0.000199,2]
[425535328,1781802642000,-803.55446617,0.00019948,2]
[425535324,1781802642000,-1311.875613,0.00019919,2]
[425535319,1781802642000,-242802.93828638,0.000199,2]
[425535325,1781802642000,-2463.751227,0.00019919,2]
[425535326,1781802642000,-357.49281111,0.00019948,2]
[425535323,1781802642000,-160.0,0.00019919,2]
[425535321,1781802642000,-215.24272444,0.000199,2]
[425535322,1781802642000,-167.915799,0.000199,2]
[425535329,1781802642000,-152.0,0.00019953,7]
[425535331,1781802642000,-1314.419654,0.00019963,2]
[425535330,1781802642000,-259.806333,0.00019963,2]
[425535333,1781802642000,-221.138288,0.00019972,2]
[425535335,1781802642000,-300.0,0.00019999,2]
[425535334,1781802642000,-551.72,0.00019999,2]
[425535339,1781802642000,-211.13820967,0.0002,2]
[425535337,1781802642000,-500.0,0.00019999,2]
[425535336,1781802642000,-500.0,0.00019999,2]
[425535341,1781802642000,-42214.06760009,0.0002,2]
[425535338,1781802642000,-602.20247981,0.00019999,2]
[425535340,1781802642000,-40731.6853568,0.0002,20]
[425535332,1781802642000,-152.0,0.00019971,7]
[425535366,1781802646000,-150.93,0.00020133,2]
[425535370,1781802646000,-1868.549,0.00020133,2]
[425535373,1781802646000,-291.69114016,0.0002022,2]
[425535378,1781802646000,-500.0,0.00020406,2]
[425535376,1781802646000,-211.13820967,0.000204,2]
[425535374,1781802646000,-151.0,0.000203,3]
[425535372,1781802646000,-211.13820967,0.000202,2]
[425535364,1781802646000,-151.196,0.00020133,2]
[425535377,1781802646000,-500.0,0.00020406,2]
[425535362,1781802646000,-500.0,0.00020132,2]
[425535358,1781802646000,-1745.00912182,0.0001683,2]
[425535359,1781802646000,-426337.62770053,0.0002,2]
[425535360,1781802646000,-367577.62008588,0.0002,2]
[425535367,1781802646000,-250.0,0.00020133,2]
[425535361,1781802646000,-500.0,0.00020132,2]
[425535368,1781802646000,-268.738,0.00020133,2]
[425535369,1781802646000,-1442.53,0.00020133,2]
[425535379,1781802646000,-166.418281,0.00020629,2]
[425535357,1781802646000,-604.39,0.00016712,2]
[425535356,1781802646000,-604.39,0.00016438,2]
[425535363,1781802646000,-500.0,0.00020132,2]
[425535371,1781802646000,-583.18879872,0.00020157,7]
[425535365,1781802646000,-232.959,0.00020133,2]
[425535382,1781802646000,-151.0,0.000208,3]
[425535375,1781802646000,-416.045698,0.00020358,2]
[425535400,1781802646000,-152.0,0.00021154,2]
[425535396,1781802646000,-3000.0,0.0002103,2]
[425535397,1781802646000,-3000.0,0.0002104,2]
[425535398,1781802646000,-3000.0,0.0002105,2]
[425535401,1781802646000,-424.67698579,0.00021213,2]
[425535399,1781802646000,-5754.902342,0.0002106,2]
[425535394,1781802646000,-3000.0,0.0002101,2]
[425535395,1781802646000,-3000.0,0.0002102,2]
[425535389,1781802646000,-187.32366002,0.00021,2]
[425535391,1781802646000,-358.77580941,0.00021,2]
[425535393,1781802646000,-516.12052839,0.00021,2]
[425535387,1781802646000,-199.024459,0.00020971,2]
[425535390,1781802646000,-229.61651803,0.00021,2]
[425535388,1781802646000,-3000.0,0.00021,2]
[425535386,1781802646000,-500.0,0.00020954,2]
[425535384,1781802646000,-864.0,0.00020918,2]
[425535385,1781802646000,-177.23789668,0.00020943,2]
[425535381,1781802646000,-429.792146,0.00020782,2]
[425535380,1781802646000,-500.0,0.0002068,2]
[425535383,1781802646000,-2361.376105,0.00020915,2]
[425535392,1781802646000,-235.93165877,0.00021,2]
[425535404,1781802647000,-492.79020286,0.00021252,2]
[425535405,1781802647000,-3291.18250923,0.0002126,7]
[425535403,1781802647000,-500.0,0.00021228,2]
[425535402,1781802647000,-685.7417628,0.00021227,2]
[425535406,1781802647000,-2384.301666,0.00021319,2]
[425535410,1781802647000,-162.50950792,0.00021425,2]
[425535407,1781802647000,-152.0,0.00021356,2]
[425535413,1781802647000,-2252.61,0.00021427,2]
[425535412,1781802647000,-604.39,0.00016986,2]
[425535409,1781802647000,-374.441128,0.00021376,2]
[425535411,1781802647000,-1374957.30902001,0.00021427,2]
[425535408,1781802647000,-200.0,0.0002137,2]
[425539432,1781803695000,2400.0,0.00023085,30]
[425539435,1781803723000,1100.0,0.00023085,30]
[425539471,1781803832000,-1162.6140604,0.0001862,2]
[425539473,1781803832000,-185.6050788,0.000188,2]
[425539492,1781803832000,-7.4661229,0.00020596,2]
[425539467,1781803832000,-185.6050788,0.000186,2]
[425539480,1781803832000,-713.66141637,0.00019608,2]
[425539460,1781803832000,-155.21875911,0.00017582,2]
[425539469,1781803832000,-184.43855652,0.000186,2]
[425539478,1781803832000,-185.6050788,0.000193,2]
[425539496,1781803832000,-417.11040573,0.00020596,2]
[425539486,1781803832000,-445.0,0.00020275,2]
[425539483,1781803832000,-506.23195761,0.00019608,2]
[425539458,1781803832000,-1106.00104375,0.00016643,2]
[425539485,1781803832000,-528.84,0.00020275,2]
[425539490,1781803832000,-528.84,0.00020549,2]
[425539503,1781803832000,-66.14279094,0.00021051,2]
[425539500,1781803832000,-340.42105537,0.00020823,2]
[425539498,1781803832000,-188.41894463,0.00020823,2]
[425539488,1781803832000,-186.0,0.00020275,2]
[425539494,1781803832000,-802.87585299,0.00020596,2]
[425539464,1781803832000,-160.0,0.00018584,2]
[425539501,1781803832000,-177.23789668,0.00020998,2]
[425539466,1781803832000,-160.0,0.00018584,2]
[425539477,1781803832000,-185.6050788,0.000191,2]
[425539462,1781803832000,-1155.40908602,0.00017632,2]
[425539475,1781803832000,-185.6050788,0.00019,2]
[425539679,1781803838000,-1179.65829386,0.00021051,2]
[425539684,1781803838000,-215.84663672,0.00021114,2]
[425539673,1781803838000,-1841.0,0.00020275,2]
[425539681,1781803838000,-339.31466687,0.00021051,2]
[425539676,1781803838000,-754.98130807,0.00021051,2]
[425539675,1781803838000,-122.55405417,0.00021051,2]
[425539682,1781803838000,-528.84,0.00021096,2]
[425539686,1781803838000,-152.0,0.00021163,7]
[425539678,1781803838000,-195.93776629,0.00021051,2]
[425539687,1781803838000,-152.0,0.00021182,7]
[425539689,1781803838000,-1980.51006857,0.00021185,2]
[425540463,1781803846000,-300.83525234,0.00021384,2]
[425540461,1781803846000,-1295.76188981,0.00021384,8]
[425540452,1781803846000,-500.0,0.00021226,2]
[425540450,1781803846000,-500.0,0.00021226,2]
[425540458,1781803846000,-151.564,0.00021326,2]
[425540465,1781803846000,-500.0,0.00021384,2]
[425540454,1781803846000,-393.2007997,0.00021226,2]
[425540456,1781803846000,-18595.57341845,0.00021227,2]
[425540433,1781803846000,-3289.27596707,0.00021185,2]
[425540431,1781803846000,-578.0,0.00021185,2]
[425540449,1781803846000,-3596.44000402,0.00021185,2]